bitfinex/quotes_ETHUSD_20251120
["timestamp","ask_amount","ask_price","bid_price","bid_amount"]
[1763650752825,0.4653,3008.2,3007.4,0.1941]
[1763650752989,0.117,3007.7,3006.7,7.11831094]
[1763650753194,0.002,3007.8,3006.8,0.89147055]
[1763650753414,3.32674142,3007.8,3006.8,0.89147055]
[1763650753629,6.65148284,3007.8,3006.9,0.4665]
[1763650754199,3.44374142,3007.8,3006.9,0.4665]
[1763650754616,3.44374142,3007.8,3006.9,0.75432815]
[1763650754617,0.44706399,3007.7,3006.9,0.75432815]
[1763650754819,6.64982044,3007.6,3006.5,0.90699264]
[1763650755217,6.64982044,3007.6,3006.3,0.5835]
[1763650755218,0.91036675,3007.5,3006.3,3.44331178]
[1763650755403,0.405504,3007.3,3006.3,0.5835]
[1763650755734,0.405504,3007.1,3006.1,0.1941]
[1763650755892,0.15856967,3007.0,3006.1,0.1941]
[1763650756095,0.405504,3007.1,3006.2,0.4665]
[1763650756290,0.4633,3007.2,3006.2,0.4665]
[1763650756291,0.117,3007.0,3006.2,0.4665]
[1763650756822,0.117,3007.0,3006.3,3.326348]
[1763650757026,0.117,3007.0,3006.3,6.652696]
[1763650757226,0.117,3007.0,3006.3,7.119196]
[1763650757428,3.44257506,3007.0,3006.3,1.27097926]
[1763650757630,7.23145012,3007.0,3006.1,0.92559656]
[1763650757936,0.868804,3006.9,3006.0,0.001]
[1763650758247,0.868804,3006.9,3006.0,3.32767528]
[1763650758527,0.868804,3006.9,3006.1,0.1941]
[1763650758915,0.405504,3006.7,3006.0,0.001]
[1763650759117,0.116,3006.6,3006.0,0.001]
[1763650759632,0.116,3006.6,3006.1,0.1941]
[1763650760002,0.116,3006.6,3006.1,0.6606]
[1763650760200,0.116,3006.6,3006.1,0.1941]
[1763650760714,3.32579486,3006.8,3006.1,0.6606]
[1763650760914,3.32579486,3006.8,3006.2,3.32645865]
[1763650761325,3.44160475,3007.0,3006.3,0.4665]
[1763650761505,7.2305095,3007.0,3006.1,3.5206398]
[1763650761702,0.002,3006.9,3006.1,3.5206398]
[1763650761937,0.002,3006.9,3006.1,3.52066436]
[1763650762640,0.002,3006.9,3006.1,3.8728308]
[1763650762807,0.002,3006.9,3006.2,0.4665]
[1763650763003,0.002,3006.9,3006.2,3.79294028]
[1763650763203,0.407504,3006.9,3006.1,3.52062676]
[1763650763449,0.407504,3006.9,3006.1,0.1941]
[1763650763642,0.870804,3006.9,3006.1,3.52066359]
[1763650764120,0.870804,3006.9,3006.1,0.1941]
[1763650764318,0.870804,3006.9,3006.0,3.32761597]
[1763650764319,0.4633,3006.8,3006.0,3.32761597]
[1763650764535,0.4633,3006.8,3006.1,0.1941]
[1763650765755,0.4633,3006.8,3005.7,0.001]
[1763650765756,0.1929,3005.4,3004.6,1.73524384]
[1763650766056,0.1929,3005.4,3004.0,0.001]
[1763650766057,0.405504,3004.6,3004.0,0.001]
[1763650766236,1.62262517,3005.1,3004.0,0.001]
[1763650766439,7.05694286,3004.7,3004.0,0.001]
[1763650766613,1.42849664,3004.6,3004.0,0.001]
[1763650766810,1.89179664,3004.6,3004.0,0.001]
[1763650767016,0.405504,3004.4,3004.0,0.001]
[1763650767452,0.4633,3004.3,3004.0,0.001]
[1763650767621,1.31249664,3004.1,3004.0,0.001]
[1763650768033,1.77579664,3004.1,3004.0,0.001]
[1763650768354,1.89179664,3004.1,3004.0,0.001]
[1763650769221,1.42849664,3004.1,3004.0,0.001]
[1763650769421,1.90749664,3004.1,3004.0,0.001]
[1763650769644,5.23628063,3004.1,3004.0,0.001]
[1763650770039,4.75728063,3004.1,3004.0,0.001]
[1763650770455,5.23628063,3004.1,3004.0,0.001]
[1763650770831,4.75728063,3004.1,3004.0,0.001]
[1763650771934,5.23628063,3004.1,3004.0,0.001]
[1763650774069,5.48418063,3004.1,3004.0,0.001]
[1763650775880,5.48418063,3004.1,3003.3,0.001]
[1763650775881,0.405504,3003.9,3003.3,0.001]
[1763650776077,8.5700395,3003.7,3003.3,0.001]
[1763650776235,0.116,3003.6,3003.3,0.001]
[1763650778258,0.90699264,3003.4,3003.3,0.001]
[1763650778589,0.90699264,3003.7,3003.3,0.4987]
[1763650778952,0.90699264,3003.7,3003.3,0.001]
[1763650779347,0.405504,3003.8,3003.3,0.001]
[1763650779551,1.31249664,3003.8,3003.3,0.001]
[1763650780395,0.90699264,3003.6,3003.3,0.001]
[1763650781086,0.90699264,3003.6,3003.3,0.4725]
[1763650781285,0.002,3003.7,3003.5,0.4977]
[1763650781494,0.002,3003.7,3003.3,0.4725]
[1763650781675,0.002,3003.7,3003.3,0.001]
[1763650782157,0.002,3003.7,3003.4,0.4715]
[1763650782757,0.002,3003.7,3003.3,0.001]
[1763650783360,0.002,3003.7,3003.3,0.4725]
[1763650783794,0.002,3003.7,3003.6,0.4977]
[1763650784290,0.002,3003.7,3003.6,0.9692]
[1763650784655,0.002,3003.7,3003.6,0.4977]
[1763650785131,0.002,3003.7,3003.6,0.9692]
[1763650785272,0.002,3003.7,3003.6,0.4977]
[1763650785474,0.002,3003.7,3003.3,0.117]
[1763650785673,0.002,3003.7,3003.3,0.5885]
[1763650786081,0.002,3003.7,3003.6,0.4977]
[1763650786800,0.002,3003.7,3003.6,0.9692]
[1763650787603,0.002,3003.7,3003.6,4.29853812]
[1763650788012,0.002,3004.1,3003.6,0.9692]
[1763650788310,0.002,3004.1,3004.0,0.4977]
[1763650788875,0.002,3004.1,3004.0,0.6137]
[1763650789112,0.002,3004.1,3004.0,1.47947813]
[1763650789780,0.002,3004.1,3004.0,1.00797813]
[1763650790003,0.002,3004.1,3004.0,1.47947813]
[1763650790308,0.002,3004.1,3004.0,0.4977]
[1763650790607,0.002,3004.1,3004.0,0.6137]
[1763650790970,0.002,3004.1,3003.6,0.4715]
[1763650791179,0.002,3004.1,3003.7,0.116]
[1763650791410,0.002,3004.1,3003.4,0.4715]
[1763650791596,0.002,3004.1,3003.5,0.116]
[1763650791775,0.002,3004.1,3003.3,3.33065913]
[1763650791776,0.002,3004.1,3003.3,0.001]
[1763650791969,0.002,3004.1,3003.3,0.4725]
[1763650792174,0.002,3004.1,3003.4,0.116]
[1763650792821,6.65956798,3004.1,3003.4,0.116]
[1763650793330,6.65956798,3004.1,3003.3,0.001]
[1763650793487,9.98835197,3004.1,3003.3,0.001]
[1763650793698,0.44711518,3004.0,3003.3,0.001]
[1763650794118,0.1902,3003.9,3003.3,0.001]
[1763650794608,0.90584218,3003.9,3003.3,0.001]
[1763650794813,6.6582329,3003.8,3003.3,0.001]
[1763650795310,0.717582,3003.7,3003.3,0.001]
[1763650795510,6.6582329,3003.8,3003.3,0.001]
[1763650795712,0.7175824,3003.7,3003.3,0.001]
[1763650796046,0.7175846,3003.6,3003.3,0.001]
[1763650796345,6.6582329,3003.8,3003.3,0.001]
[1763650796490,1.19830498,3003.7,3003.3,0.001]
[1763650796690,0.71760498,3003.6,3003.3,0.001]
[1763650796987,6.65867624,3003.6,3003.3,0.001]
[1763650797389,0.71765491,3003.5,3003.3,0.001]
[1763650797633,6.65867624,3003.6,3003.3,0.001]
[1763650797788,0.71765493,3003.5,3003.3,0.001]
[1763650797989,6.65867624,3003.6,3003.3,0.001]
[1763650798226,0.71765527,3003.5,3003.3,0.001]
[1763650798432,6.65867624,3003.6,3003.3,0.001]
[1763650798589,0.71764773,3003.5,3003.3,0.001]
[1763650798916,0.405504,3003.7,3003.3,0.001]
[1763650799229,0.71764744,3003.6,3003.3,0.001]
[1763650799398,3.32911645,3003.8,3003.4,0.4715]
[1763650799729,0.71761554,3003.7,3003.5,0.4977]
[1763650799971,0.71761554,3003.6,3003.3,0.001]
[1763650800181,0.71761927,3003.7,3003.4,0.4715]
[1763650800337,0.002,3004.1,3003.7,0.4977]
[1763650800538,0.002,3004.1,3004.0,0.4977]
[1763650801033,0.002,3004.1,3004.0,1.0852]
[1763650801667,0.002,3004.1,3004.0,0.6137]
[1763650802075,0.002,3004.1,3004.0,1.0852]
[1763650802938,0.002,3004.1,3004.0,4.4140948]
[1763650803261,0.002,3004.1,3004.0,5.18840452]
[1763650803467,0.002,3004.1,3004.0,1.85950972]
[1763650803688,0.002,3004.1,3004.0,1.0852]
[1763650803892,0.4994,3004.1,3003.4,0.4715]
[1763650804193,0.002,3004.1,3003.4,0.4715]
[1763650804362,0.002,3004.1,3004.0,0.4977]
[1763650804761,0.002,3004.1,3003.5,0.4715]
[1763650804987,0.002,3004.1,3003.6,0.116]
[1763650805300,0.002,3004.1,3004.0,0.4977]
[1763650805719,0.002,3004.1,3004.0,0.9692]
[1763650807013,0.002,3004.1,3004.0,5.32108744]
[1763650807358,0.002,3004.8,3004.3,0.6824]
[1763650807465,2.87341755,3006.7,3004.3,0.6824]
[1763650807466,1.0773823,3006.8,3005.0,0.90699264]
[1763650807666,1.42926645,3006.7,3005.8,0.4977]
[1763650807866,0.0415752,3006.6,3005.7,0.116]
[1763650808098,0.5222752,3006.6,3005.7,0.116]
[1763650808300,0.4807,3006.6,3005.7,0.116]
[1763650808998,0.90699264,3006.4,3005.7,0.116]
[1763650809763,0.90699264,3006.4,3005.4,0.4822]
[1763650809968,0.94628335,3006.3,3005.2,0.3007]
[1763650810200,0.94628335,3006.3,3005.2,3.628253]
[1763650810403,0.405504,3006.3,3005.2,4.8060563]
[1763650810567,0.904704,3006.3,3005.2,1.4785033]
[1763650810771,0.904704,3006.3,3005.2,4.80605342]
[1763650810967,6.6529173,3006.2,3005.2,1.4785033]
[1763650811180,1.31249664,3006.1,3005.2,1.4785033]
[1763650811408,0.1931,3005.3,3004.6,0.4822]
[1763650811702,0.4317,3005.3,3004.4,0.116]
[1763650812000,0.4317,3005.3,3004.4,0.5982]
[1763650812394,0.405504,3005.7,3004.4,0.5982]
[1763650812701,0.44709165,3005.7,3004.5,0.85999997]
[1763650812902,0.44709165,3005.7,3004.3,3.51326239]
[1763650812903,0.405504,3005.5,3004.3,0.1847]
[1763650813078,1.31249664,3005.1,3003.8,0.4822]
[1763650813278,0.405504,3004.9,3003.8,0.4822]
[1763650813670,0.1856,3004.8,3003.8,0.4822]
[1763650814003,0.44710549,3004.7,3003.3,0.5992]
[1763650814207,0.44710549,3004.7,3003.4,0.116]
[1763650814208,0.904704,3004.7,3003.4,0.116]
[1763650814573,0.405504,3004.7,3003.3,3.33066549]
[1763650814778,0.405504,3004.5,3003.3,0.001]
[1763650814997,0.405504,3004.3,3003.3,0.001]
[1763650815202,1.31249664,3004.1,3003.3,0.001]
[1763650815903,0.90699264,3004.1,3003.3,0.001]
[1763650817032,0.90699264,3004.1,3003.4,0.4822]
[1763650817238,0.90699264,3004.2,3003.4,3.81171067]
[1763650817398,0.90699264,3004.2,3003.4,7.1412705]
[1763650817592,0.90699264,3004.2,3003.5,0.4822]
[1763650817798,3.32800851,3004.8,3004.1,0.6776]
[1763650817998,0.90699264,3004.7,3003.9,0.4822]
[1763650818409,0.904704,3004.6,3003.7,0.116]
[1763650818738,0.904704,3004.6,3003.4,0.4822]
[1763650818941,0.405504,3004.4,3003.3,0.001]
[1763650819138,1.31249664,3004.0,3003.3,0.001]
[1763650819438,0.1978,3003.9,3003.3,0.001]
[1763650819935,0.405504,3003.8,3003.3,0.001]
[1763650820097,0.2386,3003.4,3003.3,0.001]
[1763650820499,1.140704,3003.4,3003.3,0.001]
[1763650821099,5.11345647,3003.4,3003.3,0.001]
[1763650821300,0.90699264,3003.4,3003.3,0.001]
[1763650821601,4.97415247,3003.4,3003.3,0.001]
[1763650822017,4.70595247,3003.4,3003.3,0.001]
[1763650822205,4.23655247,3003.4,3003.3,0.001]
[1763650823338,0.116,3003.8,3003.3,0.4867]
[1763650823520,6.6577896,3004.0,3003.3,0.9689]
[1763650823701,6.6577896,3004.0,3003.3,0.001]
[1763650824100,9.9858844,3004.0,3003.3,0.001]
[1763650824346,6.6569896,3004.0,3003.3,0.001]
[1763650825016,0.904704,3003.9,3003.3,0.001]
[1763650825216,1.31249664,3003.7,3003.3,0.001]
[1763650825937,0.90699264,3003.8,3003.3,0.4832]
[1763650826169,0.90699264,3003.8,3003.3,0.001]
[1763650826442,0.644104,3003.4,3003.3,0.001]
[1763650826644,1.140704,3003.4,3003.3,0.001]
[1763650826848,0.405504,3003.3,3003.0,0.001]
[1763650827143,0.405504,3002.9,3002.8,0.001]
[1763650827448,4.84771086,3002.9,3002.8,0.001]
[1763650827766,5.46291086,3002.9,3002.8,0.001]
[1763650827907,4.44220686,3002.9,3002.8,0.001]
[1763650828106,5.48621086,3002.9,3002.8,0.001]
[1763650829455,4.98971086,3002.9,3002.8,0.001]
[1763650829616,4.35310686,3002.9,3002.8,0.001]
[1763650829817,4.61450686,3002.9,3002.8,0.001]
[1763650830361,5.48661086,3002.9,3002.8,0.001]
[1763650831447,5.52823728,3002.9,3002.8,0.001]
[1763650831645,0.0047,3002.7,3002.1,0.001]
[1763650831847,0.412704,3002.5,3002.1,0.001]
[1763650832156,13.43645688,3002.9,3002.1,0.001]
[1763650832157,8.31947285,3002.3,3002.1,0.001]
[1763650832562,8.78817285,3002.3,3002.1,0.001]
[1763650832872,0.4687,3002.8,3002.1,0.001]
[1763650833169,3.37174064,3002.9,3002.8,0.001]
[1763650833673,5.09911086,3002.9,3002.8,0.001]
[1763650833887,5.14073728,3002.9,3002.8,0.001]
[1763650834048,5.41413728,3002.9,3002.8,0.001]
[1763650834443,5.37251086,3002.9,3002.8,0.001]
[1763650835091,6.85717734,3003.3,3002.8,0.001]
[1763650835244,0.116,3003.0,3002.8,0.001]
[1763650835446,6.77618444,3003.0,3002.8,0.001]
[1763650835680,1.81062306,3002.9,3002.8,0.001]
[1763650835847,2.08402306,3002.9,3002.8,0.001]
[1763650836180,2.04239664,3002.9,3002.8,0.001]
[1763650836381,2.15839664,3002.9,3002.8,0.001]
[1763650836845,2.20002306,3002.9,3002.8,0.001]
[1763650837444,2.20002306,3002.9,3002.4,0.001]
[1763650837445,0.405504,3002.8,3002.4,0.001]
[1763650837785,0.405504,3002.8,3000.8,0.6471]
[1763650837786,0.410804,3002.2,3000.8,0.1919]
[1763650837952,1.31249664,3001.7,3000.8,0.1919]
[1763650838150,0.116,3001.6,3000.8,0.1919]
[1763650838349,0.2987,3001.6,3000.8,0.1919]
[1763650838544,0.116,3001.6,3000.9,0.4747]
[1763650838876,0.116,3001.6,3000.9,0.87460447]
[1763650839379,3.44758803,3001.6,3000.9,0.39990447]
[1763650839675,0.116,3001.6,3000.9,3.73218694]
[1763650839878,0.596504,3001.9,3001.0,0.4747]
[1763650839879,3.73675862,3001.9,3001.0,0.4747]
[1763650840083,0.405504,3001.7,3001.0,0.4747]
[1763650840280,0.405504,3001.7,3001.1,0.1992]
[1763650840670,0.405504,3001.9,3001.1,1.07452219]
[1763650840870,6.85235821,3002.4,3001.8,0.4604]
[1763650841171,0.405504,3002.2,3001.1,1.07452219]
[1763650841373,1.31249664,3001.8,3001.1,0.1992]
[1763650841558,0.405504,3001.6,3001.1,0.1992]
[1763650841961,3.33116055,3002.0,3001.5,0.4604]
[1763650842184,0.116,3002.1,3001.5,0.4604]
[1763650842780,0.405504,3002.0,3001.1,0.6739]
[1763650843089,0.405504,3002.0,3001.2,0.87530748]
[1763650843251,0.9362429,3002.0,3001.1,0.1992]
[1763650843453,1.31249664,3001.8,3001.1,0.1992]
[1763650843688,0.116,3001.7,3001.1,0.1992]
[1763650844495,0.116,3001.7,3001.1,0.6739]
[1763650844666,0.405504,3001.6,3001.1,0.1992]
[1763650845310,0.90699264,3001.8,3001.5,0.4604]
[1763650845605,0.90699264,3001.8,3001.1,0.1992]
[1763650845606,0.405504,3001.7,3001.1,0.1992]
[1763650845805,0.405504,3001.7,3000.8,0.1919]
[1763650845806,0.04164445,3001.6,3000.8,0.1919]
[1763650846170,0.405504,3001.7,3000.8,0.1919]
[1763650846407,1.80159664,3001.7,3000.8,0.1919]
[1763650846618,1.31249664,3001.7,3000.9,0.4747]
[1763650846905,0.405504,3001.5,3000.4,4.00677954]
[1763650847209,0.405504,3001.3,3000.5,0.40067795]
[1763650847409,0.405504,3001.3,3000.4,0.6739]
[1763650847708,6.66400106,3001.2,3000.5,0.4747]
[1763650847865,0.405504,3001.1,3000.5,0.4747]
[1763650848072,1.31249664,3001.1,3000.4,0.1992]
[1763650848274,0.4328,3000.5,2999.9,0.1919]
[1763650848509,0.5488,3000.5,2999.6,0.4747]
[1763650848806,0.4328,3000.5,2999.7,0.38085769]
[1763650848976,0.116,3000.7,3000.4,0.1992]
[1763650849306,0.116,3000.7,2999.8,0.4747]
[1763650849606,0.90699264,3000.6,2999.9,3.33344444]
[1763650849809,3.33212252,3001.1,3000.6,0.6596]
[1763650850108,0.191,3001.6,3001.0,0.4604]
[1763650850317,3.33111259,3002.0,3001.1,0.4747]
[1763650850610,0.90699264,3001.9,3001.1,0.4747]
[1763650850796,6.77822518,3002.0,3000.6,0.1992]
[1763650850986,6.75277621,3001.8,3000.6,0.1992]
[1763650851188,2.06916915,3001.7,3000.6,0.1992]
[1763650851383,0.405504,3001.5,3000.6,0.1992]
[1763650851583,0.116,3001.6,3000.3,0.4747]
[1763650851584,0.405504,3001.0,3000.3,0.4747]
[1763650851795,0.521504,3001.0,3000.4,0.38077512]
[1763650852020,0.405504,3000.8,3000.0,0.1992]
[1763650852705,0.405504,3000.8,3000.1,0.4747]
[1763650853475,3.73803598,3000.8,3000.1,0.4747]
[1763650853677,7.07056796,3000.8,3000.1,3.80791115]
[1763650854210,7.07040122,3000.8,3000.2,0.4747]
[1763650854783,0.405504,3001.2,3000.2,0.87541897]
[1763650855020,0.116,3001.1,3000.2,0.87541897]
[1763650855311,1.02299264,3001.1,3000.3,0.4747]
[1763650855508,3.33222259,3001.0,3000.3,3.80760016]
[1763650855718,0.90699264,3000.9,3000.3,0.4747]
[1763650856217,0.94864681,3000.9,3000.3,0.4747]
[1763650856454,0.94864681,3000.9,3000.0,0.1992]
[1763650856770,0.405504,3000.8,3000.0,3.53252665]
[1763650857062,0.90699264,3000.9,3000.1,0.87542267]
[1763650857429,0.90699264,3000.9,3000.2,0.4747]
[1763650857623,0.405504,3001.0,3000.3,3.33300003]
[1763650857830,0.405504,3001.0,3000.4,0.4747]
[1763650858024,0.90699264,3001.2,3000.4,0.85547]
[1763650858262,0.405504,3001.1,3000.4,0.4747]
[1763650858628,0.39550533,3001.1,3000.4,0.4747]
[1763650859220,0.116,3001.0,3000.1,3.33317149]
[1763650859555,0.04165417,3000.9,3000.0,0.6739]
[1763650859755,6.66488936,3000.8,3000.0,0.6739]
[1763650859919,9.99733404,3000.8,3000.0,0.1992]
[1763650860367,0.90699264,3000.8,3000.1,0.4747]
[1763650860563,0.116,3001.0,3000.7,0.4604]
[1763650860715,1.31249664,3000.9,3000.1,0.4747]
[1763650861038,1.31249664,3000.9,3000.1,0.87541916]
[1763650861237,1.31249664,3000.9,3000.1,0.4747]
[1763650861414,1.31249664,3000.9,3000.0,0.1992]
[1763650861613,1.31249664,3000.9,2999.6,0.001]
[1763650861614,0.405504,3000.3,2999.6,0.001]
[1763650862015,0.1834,2999.7,2999.6,0.001]
[1763650862215,1.67219664,2999.7,2999.6,0.001]
[1763650862525,0.405504,2999.6,2999.1,0.001]
[1763650862849,0.405504,2999.6,2997.9,0.1992]
[1763650862850,1.31249664,2999.1,2997.9,0.1992]
[1763650863051,0.405504,2998.0,2996.6,0.4747]
[1763650863222,0.405504,2997.8,2996.6,0.4747]
[1763650863555,0.405504,2997.8,2996.7,0.02603888]
[1763650863862,0.405504,2997.6,2996.6,7.14889763]
[1763650864077,0.52315634,2998.4,2996.7,0.74093056]
[1763650864375,0.89542612,2999.1,2997.7,0.1992]
[1763650864540,0.65941973,2999.9,2997.8,0.5907]
[1763650864541,3.51709368,2999.7,2997.8,0.5907]
[1763650864726,0.116,2999.6,2997.8,0.5907]
[1763650864929,0.116,2999.6,2997.9,0.90699264]
[1763650865175,0.116,2999.6,2997.8,7.34347621]
[1763650865176,0.116,3000.0,2999.5,0.1246]
[1763650865342,0.116,3000.0,2999.0,0.1246]
[1763650865543,3.52377519,3000.6,2999.1,0.4747]
[1763650865885,0.116,3000.5,2999.0,0.1246]
[1763650866090,6.94377621,2999.1,2996.8,0.1992]
[1763650866371,0.405504,2998.3,2997.1,0.4747]
[1763650866540,0.191,2999.1,2997.1,0.4747]
[1763650866541,0.405504,2998.1,2997.1,1.20942392]
[1763650866744,0.116,2998.1,2997.2,0.4747]
[1763650867253,0.521504,2998.5,2997.2,0.4747]
[1763650867460,0.405504,2998.5,2997.2,0.4747]
[1763650867682,0.90699264,2998.3,2997.3,6.67267206]
[1763650867832,0.405504,2998.5,2997.4,1.18943721]
[1763650868148,3.74050836,2998.5,2997.4,1.18943721]
[1763650868344,7.07551272,2998.5,2997.5,0.47]
[1763650868573,0.405504,2998.3,2997.1,3.45251675]
[1763650868767,0.405504,2998.3,2997.2,0.8618373]
[1763650869080,0.405504,2998.3,2997.2,1.2158373]
[1763650869233,0.405504,2998.3,2997.2,0.116]
[1763650869431,0.405504,2998.3,2997.3,0.47]
[1763650869658,0.405504,2998.3,2997.4,3.36224603]
[1763650869866,0.90699264,2998.3,2997.3,0.47]
[1763650870368,0.891304,2998.2,2997.1,0.001]
[1763650870540,0.405504,2998.0,2997.1,0.001]
[1763650870942,0.405504,2997.8,2997.1,0.35479734]
[1763650871271,0.1826,2998.5,2997.2,0.14202975]
[1763650871472,3.33486782,2998.7,2997.3,0.47]
[1763650871473,0.90699264,2998.6,2997.3,0.47]
[1763650871677,0.116,2998.8,2997.4,10.00867416]
[1763650871840,3.33452415,2999.0,2997.5,2.45087476]
[1763650872040,3.52537465,2999.1,2997.5,2.42486006]
[1763650872374,6.66822258,2999.3,2997.6,0.586]
[1763650872675,0.94867042,2999.2,2997.7,0.116]
[1763650872885,0.94867042,2999.2,2997.5,1.04786742]
[1763650873035,1.31249664,2998.7,2997.1,0.001]
[1763650873234,0.405504,2998.5,2997.1,0.001]
[1763650873491,1.31249664,2998.2,2997.1,0.001]
[1763650873666,1.31249664,2997.8,2997.1,0.001]
[1763650873974,1.31249664,2997.8,2997.1,0.1965]
[1763650874342,0.90699264,2997.9,2997.1,0.6665]
[1763650874566,0.90699264,2997.9,2997.1,0.1965]
[1763650874871,0.4858,2997.9,2997.1,0.001]
[1763650875059,0.405504,2997.8,2997.1,0.001]
[1763650875639,3.33589084,2997.7,2997.1,0.1965]
[1763650875986,0.405504,2997.9,2997.1,0.1965]
[1763650876184,1.31249664,2997.9,2997.1,0.1965]
[1763650877360,0.90699264,2997.9,2997.1,0.6665]
[1763650877756,7.11876038,2997.8,2997.1,0.001]
[1763650877951,7.07706314,2997.8,2997.1,0.001]
[1763650878379,3.74128357,2997.8,2997.1,0.1965]
[1763650878672,3.74128357,2997.8,2997.1,3.53305493]
[1763650878877,0.405504,2997.8,2997.1,4.73713814]
[1763650879255,7.57744884,2998.3,2997.2,0.47]
[1763650879446,0.93299568,2998.2,2997.1,0.001]
[1763650879647,16.6772289,2998.1,2997.1,0.001]
[1763650879861,1.4701911,2998.0,2997.1,0.001]
[1763650880082,1.9559911,2998.0,2997.1,0.001]
[1763650880280,0.405504,2997.8,2997.1,0.001]
[1763650880445,0.04169863,2997.7,2997.1,0.001]
[1763650880647,0.521504,2997.6,2997.1,0.001]
[1763650880861,0.405504,2997.4,2997.1,0.001]
[1763650881386,0.405504,2997.2,2997.1,0.001]
[1763650881691,0.521504,2997.2,2997.1,0.001]
[1763650881865,5.25074399,2997.2,2997.1,0.001]
[1763650882387,1.42849664,2997.2,2997.1,0.001]
[1763650882573,4.64894399,2997.2,2997.1,0.001]
[1763650883191,5.13474399,2997.2,2997.1,0.001]
[1763650883977,4.64894399,2997.2,2997.1,0.001]
[1763650884283,5.17644958,2997.2,2997.1,0.001]
[1763650884457,4.64894399,2997.2,2997.1,0.001]
[1763650884654,0.405504,2997.4,2997.1,0.001]
[1763650884852,6.67155914,2997.8,2997.1,0.1965]
[1763650885186,0.90699264,2997.7,2997.1,0.1965]
[1763650885386,3.45177957,2997.8,2997.1,0.1965]
[1763650885686,3.33577957,2997.8,2997.1,0.1965]
[1763650885887,3.33547937,2998.1,2997.2,0.47]
[1763650886089,6.6702241,2998.4,2997.3,3.33633603]
[1763650886285,6.6702241,2998.4,2997.4,0.3806336]
[1763650886286,0.90699264,2998.3,2997.4,0.3806336]
[1763650886493,0.04169168,2998.2,2997.1,0.1965]
[1763650886677,0.521504,2998.1,2997.1,0.001]
[1763650886880,0.405504,2997.9,2997.1,0.1965]
[1763650887080,0.405504,2997.7,2997.1,0.1965]
[1763650887459,0.521504,2997.7,2997.1,0.001]
[1763650887689,0.405504,2997.5,2997.1,0.33487672]
[1763650887854,0.405504,2997.5,2997.1,0.001]
[1763650887855,0.0417028,2997.4,2997.1,0.001]
[1763650888059,6.67267206,2997.3,2997.1,0.001]
[1763650888260,0.44720959,2997.2,2997.1,0.001]
[1763650888482,1.95600223,2997.2,2997.1,0.001]
[1763650888656,2.67077153,2997.2,2997.1,0.001]
[1763650890057,7.20040816,2997.2,2997.1,0.001]
[1763650890258,7.94056364,2997.1,2997.0,0.001]
[1763650890480,10.32675438,2997.1,2996.8,0.001]
[1763650890793,11.65117445,2996.9,2996.8,0.001]
[1763650891092,8.99243832,2996.9,2996.8,0.001]
[1763650891292,9.70801149,2996.9,2996.8,0.001]
[1763650891694,2.13146981,2996.9,2996.8,0.001]
[1763650891861,2.76797957,2996.9,2996.8,0.001]
[1763650892191,1.73856581,2996.9,2996.8,0.001]
[1763650892400,5.55414715,2996.9,2996.8,0.001]
[1763650892561,5.95965115,2996.9,2996.8,0.001]
[1763650892758,6.89676837,2996.9,2996.8,0.001]
[1763650892995,6.85505861,2996.9,2996.8,0.001]
[1763650893161,5.95965115,2996.9,2996.8,0.001]
[1763650893896,6.89695675,2996.9,2996.8,0.001]
[1763650894081,6.85524699,2996.9,2996.8,0.001]
[1763650894282,6.37644699,2996.9,2996.8,0.001]
[1763650894482,6.85524699,2996.9,2996.8,0.001]
[1763650895095,5.95965115,2996.9,2996.8,0.001]
[1763650895296,6.85577461,2996.9,2996.8,0.001]
[1763650895493,18.18535427,2996.9,2996.8,0.001]
[1763650895816,22.32726683,2996.9,2996.8,0.001]
[1763650896015,24.22100499,2996.9,2996.8,0.001]
[1763650896217,14.109133,2996.7,2995.1,0.481]
[1763650896392,0.89617814,2996.4,2995.1,0.481]
[1763650896717,0.116,2996.3,2995.1,7.15856325]
[1763650896919,0.116,2996.2,2995.2,0.73540633]
[1763650897083,0.116,2996.2,2995.2,1.21640633]
[1763650897419,0.116,2996.2,2995.3,0.481]
[1763650898082,6.6753446,2996.1,2995.3,0.481]
[1763650898282,0.89617814,2996.7,2996.1,0.1988]
[1763650898487,0.90699264,2996.5,2996.1,0.1988]
[1763650898684,0.90699264,2996.5,2995.3,6.6771089]
[1763650898685,0.405504,2996.4,2995.3,6.6771089]
[1763650898921,0.405504,2996.4,2995.7,0.4833]
[1763650899601,0.405504,2996.4,2996.3,0.1988]
[1763650900118,0.405504,2996.6,2996.3,0.1988]
[1763650900309,0.116,2996.7,2996.4,0.4833]
[1763650900620,0.116,2996.7,2996.3,0.1988]
[1763650900818,4.05348453,2996.9,2996.4,0.35363217]
[1763650901118,0.89617814,2997.3,2996.5,0.4833]
[1763650901318,0.116,2997.2,2996.5,0.4833]
[1763650901722,0.75844674,2997.5,2996.5,0.4833]
[1763650902018,0.71674533,2997.5,2996.6,6.67423078]
[1763650902218,0.405504,2997.3,2996.7,0.71575308]
[1763650902419,4.09456109,2997.5,2996.7,1.19905308]
[1763650902639,3.37783314,2997.5,2996.8,0.4833]
[1763650903119,0.405504,2997.4,2996.8,0.4833]
[1763650903502,1.12295485,2997.4,2996.8,0.4833]
[1763650904011,1.12295485,2997.4,2996.8,1.27062839]
[1763650904211,0.405504,2997.3,2996.8,0.4833]
[1763650904510,0.4472082,2997.3,2996.3,0.1988]